bitfinex-derivatives/quotes_BTCF0:USTF0_20251215
["timestamp","ask_amount","ask_price","bid_price","bid_amount"]
[1765810507020,1.09e-06,88207.0,88206.0,0.05538]
[1765810507314,1.09e-06,88207.0,88203.0,0.0246976]
[1765810507512,1.09e-06,88207.0,88205.0,0.05538]
[1765810507513,0.0113373,88206.0,88205.0,0.05538]
[1765810507900,0.00010684,88206.0,88205.0,0.05538]
[1765810508099,0.00010684,88206.0,88203.0,0.01336]
[1765810508100,0.0113374,88205.0,88204.0,0.05538]
[1765810508310,0.00010684,88206.0,88205.0,0.05538]
[1765810509014,0.01144414,88206.0,88205.0,0.02818]
[1765810509317,0.00010684,88206.0,88205.0,0.05538]
[1765810509911,0.00017001,88214.0,88213.0,0.05538]
[1765810511409,0.3608,88219.0,88213.0,0.11336133]
[1765810511602,0.01729,88260.0,88236.0,0.0113334]
[1765810511603,0.3608,88237.0,88236.0,0.0113334]
[1765810511807,0.3608,88250.0,88236.0,0.4234934]
[1765810512002,0.4008,88250.0,88249.0,0.02568]
[1765810512211,0.0113309,88256.0,88248.0,0.4872]
[1765810512516,0.0113309,88256.0,88229.0,0.001]
[1765810512517,0.0113324,88244.0,88243.0,0.00017001]
[1765810512704,0.028623,88240.0,88213.0,0.05136]
[1765810512907,0.028623,88240.0,88200.0,0.23754762]
[1765810512908,0.0113345,88228.0,88227.0,0.05136]
[1765810513109,0.0113361,88215.0,88214.0,0.49102153]
[1765810513417,0.0113361,88215.0,88214.0,0.295]
[1765810513713,0.011338,88200.0,88199.0,1.41656]
[1765810514112,0.0113377,88203.0,88202.0,0.05136]
[1765810514310,0.01729,88200.0,88199.0,1.41656]
[1765810514810,0.01705004,88200.0,88199.0,1.41656]
[1765810515409,0.01705004,88200.0,88193.0,0.3608]
[1765810515605,0.0113392,88191.0,88189.0,0.72632]
[1765810516215,0.3608,88198.0,88189.0,0.72632]
[1765810516216,0.0113388,88195.0,88189.0,0.72632]
[1765810516405,0.0113391,88192.0,88189.0,0.72632]
[1765810516607,0.36097001,88205.0,88191.0,0.3608]
[1765810516821,0.36097001,88205.0,88183.0,0.7262]
[1765810516822,0.08,88205.0,88204.0,0.05184]
[1765810517005,0.0113355,88220.0,88219.0,0.05184]
[1765810517209,0.372135,88224.0,88223.0,0.02592]
[1765810517516,0.372135,88224.0,88221.0,0.72616]
[1765810517517,0.011335,88224.0,88221.0,0.72616]
[1765810517724,0.3608,88225.0,88221.0,0.72616]
[1765810517913,0.00017001,88231.0,88221.0,0.72616]
[1765810518213,0.011335,88224.0,88222.0,0.11335362]
[1765810518411,0.011335,88224.0,88221.0,0.72616]
[1765810518719,0.0113361,88215.0,88214.0,0.00017001]
[1765810519112,0.4308,88215.0,88199.0,0.3608]
[1765810519310,0.3608,88215.0,88203.0,0.0113376]
[1765810519614,0.01729,88221.0,88215.0,0.0113361]
[1765810519814,0.0286254,88221.0,88215.0,0.7379361]
[1765810520006,0.0113358,88218.0,88215.0,0.7266]
[1765810520205,0.0113358,88218.0,88199.0,0.3608]
[1765810520206,0.0113378,88202.0,88201.0,0.72672]
[1765810520414,0.01109733,88206.0,88201.0,0.72672]
[1765810520614,0.0113377,88203.0,88201.0,0.72672]
[1765810520817,0.0113377,88203.0,88202.0,0.05184]
[1765810521017,0.3608,88209.0,88208.0,0.05184]
[1765810521321,0.00017001,88210.0,88209.0,0.0631769]
[1765810521506,0.01150681,88210.0,88209.0,0.05184]
[1765810521710,0.00017001,88210.0,88209.0,0.05184]
[1765810521908,0.0113337,88234.0,88228.0,0.0113343]
[1765810522106,0.01729,88242.0,88229.0,0.72664]
[1765810522309,0.01729,88242.0,88240.0,0.0113328]
[1765810522815,0.01729,88242.0,88230.0,0.85108962]
[1765810522816,0.0113328,88241.0,88237.0,0.3608]
[1765810523029,0.01729,88242.0,88240.0,0.0113328]
[1765810523314,0.05811,88238.0,88237.0,0.3608]
[1765810523616,0.05811,88238.0,88232.0,0.00017001]
[1765810523617,0.0113336,88235.0,88232.0,0.00017001]
[1765810523822,0.01729,88242.0,88236.0,0.0113334]
[1765810524017,0.01729,88242.0,88239.0,0.011333]
[1765810524316,0.01729,88242.0,88241.0,0.3608]
[1765810524513,0.01729,88242.0,88241.0,0.0113328]
[1765810524707,0.01729,88242.0,88232.0,0.22637963]
[1765810524708,0.05811,88238.0,88237.0,0.0113333]
[1765810524914,0.01729,88242.0,88241.0,0.0113328]
[1765810525310,0.01729,88242.0,88237.0,0.0113333]
[1765810525510,0.0694438,88233.0,88232.0,0.00017001]
[1765810525710,0.4302438,88233.0,88232.0,0.00017001]
[1765810525911,0.6202438,88233.0,88232.0,0.00017001]
[1765810526519,0.0580855,88220.0,88219.0,0.72688]
[1765810526712,0.4362,88220.0,88219.0,0.72688]
[1765810526916,0.0754,88220.0,88219.0,0.72688]
[1765810527121,0.01705004,88220.0,88219.0,0.72688]
[1765810528626,0.01705004,88220.0,88217.0,0.3721358]
[1765810528923,0.05811,88218.0,88217.0,1.08744]
[1765810530030,0.0694457,88218.0,88217.0,0.72664]
[1765810530622,0.05811,88218.0,88217.0,0.72664]
[1765810530824,0.01705004,88220.0,88217.0,0.72664]
[1765810531315,0.01171224,88220.0,88218.0,0.12469189]
[1765810531522,0.01171224,88220.0,88219.0,0.3608]
[1765810531826,0.01171224,88220.0,88219.0,0.53010233]
[1765810532220,0.01171224,88220.0,88219.0,1.04345723]
[1765810532824,0.00017001,88228.0,88227.0,0.0113346]
[1765810533020,0.00017001,88228.0,88227.0,0.3721346]
[1765810533319,0.00017001,88228.0,88227.0,0.7721346]
[1765810533628,1e-08,88228.0,88227.0,1.05599183]
[1765810534930,1e-08,88228.0,88227.0,0.65599183]
[1765810535525,1e-08,88228.0,88227.0,1.05599183]
[1765810535829,1e-08,88228.0,88227.0,0.65599183]
[1765810536223,1e-08,88228.0,88227.0,1.05599183]
[1765810536427,0.01729,88260.0,88241.0,0.0113328]
[1765810536628,0.01729,88260.0,88241.0,1.0980528]
[1765810536629,0.0113311,88255.0,88241.0,1.0980528]
[1765810536820,0.01729,88260.0,88241.0,0.3721328]
[1765810537022,0.3608,88256.0,88241.0,1.08668]
[1765810537215,0.01729,88260.0,88241.0,1.08668]
[1765810537216,0.0113308,88257.0,88241.0,1.08668]
[1765810537421,0.00017001,88250.0,88241.0,1.08668]
[1765810538531,0.00017001,88250.0,88249.0,0.0113318]
[1765810538730,0.00017001,88250.0,88249.0,0.3721318]
[1765810539027,0.00017001,88250.0,88249.0,1.08636]
[1765810539519,1e-08,88250.0,88249.0,1.37038447]
[1765810539722,0.01729,88260.0,88259.0,0.0113305]
[1765810539927,0.01729,88260.0,88259.0,0.3721305]
[1765810540128,0.01729,88260.0,88259.0,1.26843989]
[1765810540323,0.01729,88260.0,88259.0,1.0977305]
[1765810540524,0.04503,88260.0,88259.0,0.3608]
[1765810540725,0.04503,88260.0,88259.0,1.08636]
[1765810540925,0.07495,88260.0,88259.0,1.08636]
[1765810541528,0.01729,88260.0,88259.0,1.08636]
[1765810543131,0.07495,88260.0,88259.0,1.08636]
[1765810543332,0.0689916,88250.0,88249.0,0.3608]
[1765810543631,0.0113312,88254.0,88249.0,0.77152]
[1765810543837,0.0113315,88251.0,88249.0,0.77152]
[1765810544241,0.0113313,88253.0,88249.0,0.77152]
[1765810544428,0.01729,88260.0,88252.0,0.0113313]
[1765810544629,0.01729,88260.0,88250.0,0.11330225]
[1765810544830,0.01729,88260.0,88251.0,0.7363315]
[1765810545029,0.01729,88260.0,88257.0,0.0113307]
[1765810545225,0.00017001,88268.0,88259.0,0.3608]
[1765810545428,0.00017001,88268.0,88267.0,0.3721294]
[1765810545633,0.00017001,88268.0,88267.0,1.0974494]
[1765810545935,0.01149931,88268.0,88267.0,0.72532]
[1765810546128,0.05766,88260.0,88259.0,0.00017001]
[1765810546336,0.24766,88260.0,88259.0,0.00017001]
[1765810546529,0.05766,88260.0,88259.0,0.28669001]
[1765810547134,0.24766,88260.0,88259.0,0.28669001]
[1765810547330,0.25766,88260.0,88259.0,0.00017001]
[1765810547526,0.05766,88260.0,88259.0,0.00017001]
[1765810547743,0.0113297,88265.0,88259.0,0.01150041]
[1765810547932,0.00017001,88268.0,88266.0,0.0113295]
[1765810548131,0.0113301,88263.0,88259.0,0.00017001]
[1765810548434,0.19,88263.0,88260.0,0.0113303]
[1765810548646,0.0113298,88264.0,88260.0,0.0113303]
[1765810548842,0.01149941,88268.0,88261.0,0.7368102]
[1765810549025,0.17017001,88268.0,88262.0,0.0113301]
[1765810549232,0.05766,88262.0,88261.0,0.72548]
[1765810549532,0.19017001,88268.0,88259.0,0.00017001]
[1765810549533,0.05766,88260.0,88259.0,0.00017001]
[1765810549735,0.22766,88260.0,88259.0,0.72553001]
[1765810550035,0.22766,88260.0,88259.0,0.00017001]
[1765810550342,0.05766,88260.0,88259.0,0.00017001]
[1765810550533,0.25766,88260.0,88259.0,0.00017001]
[1765810551237,0.19766,88260.0,88259.0,0.00017001]
[1765810551441,0.14,88260.0,88252.0,0.0113313]
[1765810551642,0.14,88260.0,88220.0,0.001]
[1765810551643,0.0113344,88229.0,88219.0,0.3608]
[1765810551945,0.17,88229.0,88226.0,0.0113346]
[1765810552135,0.3608,88231.0,88230.0,0.0113342]
[1765810552337,0.5421341,88231.0,88226.0,0.0113346]
[1765810552536,0.5421341,88231.0,88220.0,0.15408971]
[1765810552537,9.214e-05,88230.0,88221.0,0.0113352]
[1765810552734,0.3608,88222.0,88221.0,0.0113352]
[1765810553136,0.5721352,88222.0,88221.0,0.02776]
[1765810553340,0.5721352,88222.0,88220.0,0.00017001]
[1765810553341,0.5608,88222.0,88220.0,0.00017001]
[1765810553644,9.214e-05,88230.0,88229.0,0.05756]
[1765810553840,0.0113351,88223.0,88220.0,0.01150551]
[1765810554043,0.3608,88222.0,88221.0,0.02776]
[1765810554236,0.0113353,88221.0,88220.0,0.00017001]
[1765810554434,0.1813353,88221.0,88220.0,0.00017001]
[1765810554636,0.2090753,88221.0,88218.0,0.01850712]
[1765810554842,0.3608,88219.0,88218.0,0.01850712]
[1765810555037,0.60694,88219.0,88218.0,0.00226712]
[1765810555248,0.0113377,88203.0,88200.0,0.01624]
[1765810555445,0.41694,88202.0,88193.0,0.54764]
[1765810555748,0.58694,88202.0,88193.0,0.54764]
[1765810556546,0.58694,88202.0,88182.0,0.01624]
[1765810556547,0.0113388,88195.0,88182.0,0.01624]
[1765810556844,0.3608,88183.0,88182.0,0.01624]
[1765810557041,0.5308,88183.0,88182.0,0.0738]
[1765810557242,0.3608,88183.0,88182.0,0.0738]
[1765810557547,0.36093137,88183.0,88182.0,0.79868]
[1765810557933,0.00013137,88183.0,88182.0,0.91208118]
[1765810558134,0.36097001,88191.0,88190.0,0.05756]
[1765810558439,0.00017001,88191.0,88190.0,0.02776]
[1765810558635,0.16017001,88191.0,88190.0,0.02776]
[1765810558941,0.00017001,88191.0,88190.0,0.05756]
[1765810559144,0.00023232,88191.0,88190.0,0.05756]
[1765810559845,0.3608,88202.0,88201.0,0.05756]
[1765810560050,0.3608,88202.0,88201.0,0.78244]
[1765810560239,0.0113361,88216.0,88201.0,0.78244]
[1765810560442,0.05766,88185.0,88174.0,0.3608]
[1765810560642,0.02774,88169.0,88168.0,0.3608]
[1765810560841,0.20774,88169.0,88160.0,0.00017011]
[1765810561044,0.02774,88169.0,88160.0,0.00017011]
[1765810561246,0.3608,88162.0,88161.0,0.05756]
[1765810561447,0.3608,88171.0,88170.0,0.05756]
[1765810561749,0.00017011,88177.0,88176.0,0.0552]
[1765810561953,0.13017011,88177.0,88176.0,0.0552]
[1765810562142,0.18017011,88177.0,88162.0,0.3608]
[1765810562454,0.18017011,88177.0,88171.0,0.05524]
[1765810562455,0.3608,88172.0,88171.0,0.05524]
[1765810562944,0.00017011,88177.0,88176.0,0.05524]
[1765810563144,0.05744,88171.0,88162.0,0.3608]
[1765810565356,8.127e-05,88144.0,88131.0,0.2832891]
[1765810565541,8.127e-05,88144.0,88143.0,0.0278]
[1765810565747,8.127e-05,88144.0,88143.0,0.7818]
[1765810566061,0.15408971,88160.0,88143.0,0.72672]
[1765810566245,0.15408971,88160.0,88140.0,0.01659]
[1765810566246,0.011344,88154.0,88141.0,0.0113455]
[1765810566551,0.011344,88154.0,88140.0,0.17067971]
[1765810566552,0.18,88154.0,88140.0,0.01659]
[1765810566744,0.1913441,88154.0,88144.0,0.15408971]
[1765810566941,0.3608,88150.0,88144.0,0.16543491]
[1765810567153,0.5608,88150.0,88144.0,0.16543491]
[1765810567657,0.3608,88145.0,88144.0,0.0278]
[1765810567842,0.3608,88145.0,88144.0,0.05524]
[1765810568049,0.5608,88145.0,88144.0,0.05524]
[1765810568250,0.3608,88145.0,88144.0,0.05524]
[1765810568756,0.3608,88145.0,88140.0,0.01676021]
[1765810568757,0.3608,88152.0,88151.0,0.05524]
[1765810569054,0.3608,88152.0,88151.0,0.0278]
[1765810569241,0.00017021,88158.0,88157.0,0.0665836]
[1765810569441,0.20017021,88158.0,88157.0,0.05524]
[1765810569947,0.00017021,88158.0,88157.0,0.05524]
[1765810570146,2.1e-07,88158.0,88157.0,0.33962072]
[1765810570550,0.14976021,88158.0,88157.0,0.72776]
[1765810571043,2.1e-07,88158.0,88157.0,0.783]
[1765810571354,0.18000021,88158.0,88157.0,0.75556]
[1765810571546,0.18000021,88158.0,88157.0,0.72776]
[1765810571744,0.19134371,88158.0,88157.0,0.72768]
[1765810571948,0.01134371,88158.0,88157.0,0.72768]
[1765810572155,0.13134371,88158.0,88157.0,0.72768]
[1765810572346,2.1e-07,88158.0,88157.0,0.72768]
[1765810572556,0.17000021,88158.0,88157.0,0.72768]
[1765810572755,2.1e-07,88158.0,88157.0,0.72768]
[1765810573057,0.22744021,88158.0,88157.0,0.72768]
[1765810573257,0.53080021,88158.0,88135.0,0.3608]
[1765810573555,0.36080021,88158.0,88148.0,0.15408971]
[1765810573755,0.0113444,88151.0,88148.0,0.15408971]
[1765810573958,0.0113444,88151.0,88144.0,0.3608]
[1765810573959,0.18,88151.0,88144.0,0.3608]
[1765810574156,0.0113456,88141.0,88140.0,0.59957021]
[1765810574364,0.1913456,88141.0,88140.0,0.59957021]
[1765810574859,0.58,88141.0,88125.0,1.41776]
[1765810575065,0.05744,88118.0,88096.0,1.41776]
[1765810575358,0.05744,88118.0,88071.0,1.4188]
[1765810575359,0.0113489,88116.0,88071.0,1.4188]
[1765810575548,0.15448932,88110.0,88084.0,0.03151554]
[1765810575749,0.2,88110.0,88100.0,0.15448932]
[1765810575951,0.2,88110.0,88096.0,0.00017021]
[1765810576157,0.00013642,88109.0,88100.0,0.15448932]
[1765810576352,0.18013642,88109.0,88101.0,0.0113507]
[1765810576553,0.01148622,88109.0,88101.0,0.0113507]
[1765810576754,0.20013642,88109.0,88101.0,0.0113507]
[1765810576955,0.0113504,88104.0,88096.0,0.00017021]
[1765810577159,0.0687913,88097.0,88096.0,0.00017021]
[1765810577365,0.18,88097.0,88074.0,0.0113542]
[1765810577560,0.18,88097.0,88073.0,0.0113544]
[1765810577764,0.0113534,88081.0,88073.0,0.18108142]
[1765810577952,0.05744,88072.0,88071.0,0.12472702]
[1765810578157,0.19009019,88072.0,88040.0,0.17107932]
[1765810578368,0.00122884,88056.0,88055.0,0.0665967]
[1765810578661,0.00017031,88065.0,88064.0,0.0113556]
[1765810579164,9.019e-05,88072.0,88064.0,0.05524]
[1765810579365,0.0113528,88086.0,88069.0,0.0113548]
[1765810579557,0.1713528,88086.0,88069.0,0.0113548]
[1765810579867,0.0687958,88062.0,88061.0,0.28487981]
[1765810580169,0.0687958,88062.0,88053.0,0.00017031]
[1765810580170,0.15,88062.0,88053.0,0.00017031]
[1765810580462,0.0113561,88060.0,88059.0,0.0278]
[1765810580669,0.19,88060.0,88059.0,0.0278]
[1765810581162,0.19,88060.0,88053.0,0.00017031]
[1765810581361,0.17806273,88060.0,88053.0,0.00017031]
[1765810581665,0.05744,88021.0,88020.0,0.00874084]
[1765810581965,0.0113586,88041.0,88024.0,0.17125426]
[1765810582154,0.0113594,88035.0,88024.0,0.17125426]
[1765810582354,0.0113602,88028.0,88020.0,0.02533084]
[1765810582556,0.05744,88026.0,88025.0,0.17086019]
[1765810582759,0.02976,88021.0,88020.0,0.00874084]
[1765810582951,0.17009348,88021.0,88020.0,0.00874084]
[1765810583267,0.22753348,88021.0,88020.0,0.00874084]
[1765810583560,0.05744,88003.0,88002.0,0.00010823]
[1765810583761,0.05744,88003.0,87985.0,0.01499945]
[1765810583762,0.17,88003.0,87985.0,0.01499945]
[1765810583960,0.17,88003.0,87976.0,0.003]
[1765810583961,0.05744,87977.0,87976.0,0.003]
[1765810584164,0.0113675,87972.0,87960.0,0.15448932]
[1765810584366,0.2,87972.0,87960.0,0.01659]
[1765810584557,0.00017041,87985.0,87961.0,1.78377359]
[1765810584755,8.665e-05,87984.0,87978.0,0.01659]
[1765810584958,8.665e-05,87984.0,87983.0,0.05524]
[1765810585154,8.665e-05,87984.0,87979.0,0.1701637]
[1765810585359,8.665e-05,87984.0,87967.0,0.41428]
[1765810585554,8.665e-05,87984.0,87968.0,0.0113679]
[1765810585755,0.00017041,87985.0,87978.0,0.01659]
[1765810586064,0.0113636,88002.0,87984.0,0.05524]
[1765810586367,0.18,88002.0,87985.0,0.17027368]
[1765810586666,0.18,88002.0,87978.0,0.01659]
[1765810586667,0.15448932,88000.0,87980.0,0.17027368]
[1765810586967,0.011364,87999.0,87986.0,0.17027368]
[1765810587159,0.20153453,87999.0,87981.0,0.17044421]
[1765810587466,0.00017053,87999.0,87989.0,0.15448932]
[1765810587767,0.00017053,87999.0,87982.0,0.28482516]
[1765810587962,0.00017053,87999.0,87981.0,0.00017053]
[1765810588164,0.00017053,87999.0,87983.0,0.17117589]
[1765810588366,0.00017053,87999.0,87998.0,0.05524]
[1765810588755,8.211e-05,88001.0,88000.0,0.05524]
[1765810588962,0.0113619,88015.0,88000.0,0.05524]
[1765810589255,0.01624,88040.0,88000.0,0.05524]
[1765810589459,0.05744,88002.0,88001.0,0.11364798]
[1765810589667,0.05744,88002.0,87973.0,0.14264]
[1765810589668,0.0113661,87983.0,87973.0,0.14264]
[1765810589868,0.0113677,87970.0,87965.0,0.16991266]
[1765810590166,0.2388077,87970.0,87969.0,0.00017042]
[1765810590369,0.2388077,87970.0,87946.0,0.73916]
[1765810590370,0.0113706,87948.0,87946.0,0.73916]
[1765810590569,0.0113706,87948.0,87885.0,0.04024]
[1765810590570,0.13721,87938.0,87927.0,0.0150368]
[1765810590866,0.13721,87938.0,87919.0,0.7394]
[1765810590867,0.17,87938.0,87919.0,0.7394]
[1765810591061,0.17,87938.0,87929.0,0.00017052]
[1765810591364,0.18,87938.0,87929.0,0.00017052]
[1765810591566,0.31721,87938.0,87937.0,0.01586934]
[1765810591766,0.14684,87930.0,87885.0,0.13333184]
[1765810591971,0.00017052,87942.0,87906.0,0.00014489]
[1765810592167,0.01147515,87947.0,87912.0,0.04466]
[1765810592366,0.08010445,87947.0,87920.0,0.011374]
[1765810592666,0.20010445,87947.0,87921.0,0.17030212]
[1765810592867,0.0113717,87939.0,87925.0,0.00017063]
[1765810593062,0.0113733,87927.0,87925.0,0.00017063]
[1765810593267,0.0113715,87941.0,87925.0,0.00017063]
[1765810593458,0.00017063,87943.0,87926.0,0.16980977]
[1765810593664,0.00017063,87943.0,87934.0,0.04466]
[1765810593861,0.00017063,87943.0,87942.0,0.14797]
[1765810594470,0.14684,87926.0,87900.0,0.01510924]
[1765810594768,0.18,87926.0,87900.0,0.15448932]
[1765810594967,0.0113746,87917.0,87901.0,1.5]
[1765810595171,0.00014024,87916.0,87901.0,1.5]
[1765810595372,0.0113757,87909.0,87901.0,1.5]
[1765810595574,0.00014024,87916.0,87907.0,0.17023099]
[1765810595772,0.0568304,87983.0,87908.0,0.001]
[1765810596069,0.0113694,87957.0,87931.0,0.0113727]
[1765810596267,0.01,87957.0,87931.0,0.0113727]
[1765810596467,0.0113695,87956.0,87932.0,0.17067007]
[1765810596674,0.0113703,87950.0,87932.0,0.17067007]
[1765810596873,0.0113711,87944.0,87933.0,0.11370872]
[1765810597174,0.00017063,87950.0,87933.0,0.17067007]
[1765810597373,0.00017063,87950.0,87932.0,0.00017063]
[1765810597566,0.00013919,87955.0,87932.0,0.00017063]
[1765810597567,0.00013919,87955.0,87952.0,0.04466]
[1765810598862,0.0113698,87954.0,87952.0,0.04466]
[1765810599062,0.00013919,87955.0,87952.0,0.04466]
[1765810599266,0.00017063,87962.0,87952.0,0.04466]
[1765810599866,0.0113689,87961.0,87952.0,0.04466]
[1765810600073,0.00017063,87962.0,87953.0,0.11369191]
[1765810600284,7.169e-05,87961.0,87953.0,0.11369191]
[1765810600483,7.169e-05,87961.0,87960.0,0.14797]
[1765810600868,0.011369,87960.0,87952.0,0.00017063]
[1765810601179,0.01144069,87961.0,87952.0,0.00017063]
[1765810601479,0.00017063,87962.0,87960.0,0.14797]
[1765810601683,0.0567922,88043.0,87956.0,0.04466]
[1765810601684,0.0113642,87998.0,87956.0,0.04466]
[1765810601873,0.0113628,88008.0,87981.0,0.0113663]
[1765810602070,0.0113628,88008.0,87980.0,0.34937404]
[1765810602071,0.03,88008.0,87984.0,0.0113659]
[1765810602374,0.19,88008.0,87985.0,0.03329449]
[1765810602575,0.00017051,88005.0,87988.0,0.00017051]
[1765810602783,0.0113646,87995.0,87988.0,0.00017051]
[1765810603171,0.00017051,88005.0,87988.0,0.00017051]
[1765810603371,0.17017051,88005.0,87988.0,0.00017051]
[1765810603677,0.0113649,87992.0,87988.0,0.00017051]
[1765810604068,0.0113642,87998.0,87988.0,0.00017051]
[1765810604275,0.00017051,88005.0,87988.0,0.00017051]
[1765810604489,0.0567751,88069.0,87988.0,0.00017051]
[1765810604490,0.0113606,88026.0,88009.0,0.0113626]
[1765810604782,0.0113603,88028.0,88020.0,0.3608]
[1765810604978,0.0113603,88028.0,88025.0,0.3608]
[1765810605181,0.3608,88053.0,88025.0,0.3608]
[1765810605481,0.0001704,88048.0,88047.0,0.14797]
[1765810605677,0.01128694,88057.0,88047.0,0.14797]
[1765810605878,0.011358,88045.0,88044.0,0.04466]
[1765810606175,0.0113597,88032.0,88031.0,0.07395]
[1765810606567,0.0113597,88032.0,88030.0,0.0001704]
[1765810606772,0.1813597,88032.0,88030.0,0.0001704]
[1765810606987,0.0113617,88016.0,88015.0,0.19516]
[1765810607375,0.011363,88007.0,88006.0,0.07395]
[1765810607578,0.0113598,88031.0,88003.0,1.4208]
[1765810607579,0.0113623,88012.0,88011.0,0.07395]
[1765810607879,0.0113594,88034.0,88003.0,1.4208]
[1765810607880,0.0113632,88006.0,88004.0,0.16973236]
[1765810608078,0.0113632,88006.0,88003.0,1.4208]
[1765810608079,0.0113625,88011.0,88003.0,1.4209704]
[1765810608278,0.0113631,88006.0,88004.0,0.16973236]
[1765810608477,0.0001704,88020.0,88003.0,1.4209704]
[1765810608675,0.0113631,88006.0,88003.0,1.4209704]
[1765810608979,0.0113624,88011.0,88005.0,0.07395]
[1765810609280,0.0001704,88020.0,88004.0,0.28365684]
[1765810609469,0.0113632,88005.0,88003.0,1.4209704]
[1765810609671,0.2113632,88005.0,88003.0,1.4209704]
[1765810609985,0.0113632,88005.0,88003.0,0.0001704]
[1765810610284,0.0001704,88020.0,88003.0,0.0001704]
[1765810610473,0.0113629,88007.0,88003.0,0.0001704]
[1765810610675,0.0113629,88007.0,88006.0,0.14797]
[1765810611381,0.0113629,88007.0,88003.0,0.0001704]
[1765810611569,0.2013629,88007.0,88003.0,0.0001704]
[1765810611975,0.0113629,88007.0,88003.0,0.0001704]
[1765810612588,0.2013629,88007.0,88003.0,0.0001704]
[1765810612780,0.14684,88004.0,88003.0,0.0001704]
[1765810612975,0.0113653,87989.0,87980.0,0.3608]
[1765810613177,0.03327362,88004.0,87980.0,0.3608]
[1765810613178,0.3608,88022.0,88021.0,0.14797]
[1765810613382,0.011361,88022.0,88021.0,0.14797]
[1765810613680,0.18,88022.0,88011.0,0.3608]
[1765810613885,0.3608,88016.0,88008.0,0.0001704]
[1765810614074,0.0001704,88025.0,88012.0,0.3608]
[1765810614075,0.0113619,88015.0,88012.0,0.3608]
[1765810614280,0.1582027,88009.0,88008.0,0.0001704]
[1765810614479,0.0113621,88013.0,88008.0,0.0001704]
[1765810614687,0.011362,88015.0,88011.0,0.3608]
[1765810614982,0.0113627,88009.0,88008.0,0.0001704]
[1765810616589,0.0113646,87994.0,87993.0,0.3608]
[1765810616783,0.0113655,87987.0,87983.0,0.3608]
[1765810617289,0.0113674,87972.0,87970.0,0.3608]
[1765810617482,0.0113674,87972.0,87968.0,0.01657769]
[1765810617681,0.0113683,87965.0,87961.0,0.36097051]
[1765810617889,0.3608,87965.0,87961.0,0.01153921]
[1765810618094,0.3608,87974.0,87961.0,0.36097051]
[1765810618095,0.0113682,87967.0,87961.0,0.36097051]
[1765810618484,0.0113682,87967.0,87961.0,0.00017051]
[1765810618685,0.3608,87965.0,87961.0,0.00017051]
[1765810618991,0.63503,87965.0,87961.0,0.00017051]
[1765810619291,0.70764,87965.0,87961.0,0.00017051]
[1765810619485,0.14684,87962.0,87961.0,0.00017051]
[1765810619685,0.31684,87962.0,87961.0,0.00017051]
[1765810620295,0.31684,87962.0,87899.0,0.0113767]
[1765810620296,0.0558932,87927.0,87921.0,1e-08]
[1765810620486,0.0558932,87927.0,87898.0,0.02778226]
[1765810620487,0.0113764,87903.0,87898.0,0.02778226]
[1765810620683,0.14684,87899.0,87889.0,0.11368222]
[1765810620884,0.31684,87899.0,87876.0,1.5]
[1765810621082,0.0113772,87897.0,87876.0,1.5]
[1765810621386,0.0113781,87890.0,87876.0,1.67034764]
[1765810621581,0.0113782,87889.0,87878.0,0.00017061]
[1765810621791,0.0113791,87882.0,87878.0,0.00017061]
[1765810621982,0.2113791,87882.0,87878.0,0.00017061]
[1765810622185,0.0113799,87876.0,87864.0,1.5]
[1765810622388,0.11,87876.0,87864.0,1.5]
[1765810622893,0.07261,87891.0,87864.0,1.5]
[1765810623191,0.07261,87891.0,87873.0,0.0113802]
[1765810623586,0.07261,87891.0,87874.0,0.16985683]
[1765810623785,0.00017061,87895.0,87875.0,0.0113799]
[1765810623982,0.00017061,87895.0,87883.0,0.3608]
[1765810624182,0.00017061,87895.0,87883.0,0.45033]
[1765810624183,0.12017061,87895.0,87883.0,0.45033]
[1765810624396,0.00017061,87895.0,87883.0,0.45033]
[1765810624594,0.3608,87890.0,87883.0,0.08953]
[1765810624782,0.4521781,87890.0,87865.0,0.3608]
[1765810624989,0.0113793,87881.0,87865.0,0.3608]
[1765810625299,0.3608,87875.0,87866.0,0.16987947]
[1765810625500,0.3608,87875.0,87866.0,0.28365935]
[1765810625687,0.00017061,87879.0,87865.0,0.16968746]
[1765810625887,0.0001412,87896.0,87884.0,0.0113788]
[1765810626094,0.0113745,87918.0,87884.0,0.0113788]
[1765810626394,0.0113736,87925.0,87902.0,0.0113765]
[1765810626697,0.19,87925.0,87902.0,0.0113765]
[1765810626999,9.428e-05,87924.0,87905.0,0.00017061]
[1765810627196,0.0113746,87917.0,87905.0,0.00017061]
[1765810627397,9.428e-05,87924.0,87907.0,0.0113758]
[1765810627589,0.01146808,87924.0,87906.0,0.11374817]
[1765810627906,0.01146808,87924.0,87905.0,0.00017061]
[1765810627907,0.0113757,87909.0,87905.0,0.00017061]
[1765810628085,0.0113757,87909.0,87905.0,1e-08]
[1765810628285,0.0513757,87909.0,87905.0,1e-08]
[1765810628493,0.1813757,87909.0,87905.0,1e-08]
[1765810629091,0.02,87909.0,87905.0,1e-08]
[1765810629296,0.01113473,87916.0,87905.0,1e-08]
[1765810629489,0.0113744,87918.0,87905.0,1e-08]
[1765810629887,0.00026489,87924.0,87906.0,0.08953]
[1765810630193,0.00026489,87924.0,87906.0,0.37492717]
[1765810630394,0.0113758,87908.0,87906.0,0.11375205]
[1765810630601,0.0113758,87908.0,87905.0,1e-08]
[1765810630996,0.00026489,87924.0,87905.0,1e-08]
[1765810631192,0.0113756,87909.0,87905.0,1e-08]
[1765810631395,0.0313756,87909.0,87905.0,1e-08]
[1765810631895,0.0113768,87900.0,87864.0,1.5]
[1765810632104,0.011378,87891.0,87872.0,0.0113803]
[1765810632299,9.714e-05,87899.0,87868.0,0.11375658]
[1765810632600,0.02009714,87899.0,87864.0,0.17045613]
[1765810632801,0.02009714,87899.0,87870.0,0.0113806]
[1765810632802,0.0113785,87887.0,87870.0,0.0113806]
[1765810632989,0.00017061,87890.0,87873.0,0.00017061]
[1765810633183,9.714e-05,87899.0,87873.0,0.00017061]
[1765810633184,0.01147404,87899.0,87873.0,0.00017061]
[1765810633387,0.13009714,87899.0,87874.0,0.17045613]
[1765810633901,0.0113793,87881.0,87874.0,0.17045613]
[1765810634094,0.3608,87879.0,87874.0,0.17045613]
[1765810634301,0.00017061,87886.0,87875.0,0.11378311]
[1765810634494,0.00017061,87886.0,87885.0,0.3608]